Cogmind - Beta 13 *** ADVENTURER MODE // 2024.04.09 @ 19:01:45 Player: Teromax34 Result: Self-destructed Performance ------------- Evolutions (1) 500 Regions Visited (6) 1200 Robots Destroyed (43) 215 Value Destroyed (1177) 1177 Prototype IDs (2) 40 Alien Tech Used (0) 0 Bonus (33) 33 TOTAL SCORE: 3165 Bonus ------- Follower Combat Kills 33 Cogmind --------- Core Integrity 228/400 Matter 291/300 Energy 160/160 System Corruption 0% Temperature Cool (0) Movement Treading (160) Location -6/Proximity Caves Parts ------- > --- POWER (1) -------- Light Nuclear Core > --- PROPULSION (3) --- Light Treads > --- UTILITY (2) ------ Advanced Heat Sink Small Storage Unit > --- WEAPON (3) ------- Makeshift Shrapnel Gun Makeshift Shrapnel Gun Heavy Machine Gun > --- INVENTORY (8) ---- Large Matter Pod (150) Improved Light Armor Plating Mining Laser RU-N14's Throwing Claymores (2) RU-N14's Throwing Claymores (2) Peak State ------------ > --- POWER ------------ Reinforced Ion Engine > --- PROPULSION ------- Light Treads Light Treads > --- UTILITY ---------- Advanced Heat Sink Small Storage Unit > --- WEAPON ----------- Makeshift Shrapnel Gun Makeshift Shrapnel Gun RU-N14's Throwing Claymores > --- INVENTORY -------- Ion Engine Large Matter Pod Improved Light Armor Plating Heavy Particle Gun Mining Laser RU-N14's Throwing Claymores RU-N14's Throwing Claymores [Rating: 27] Favorites ----------- Power Reinforced Ion Engine Engine Reinforced Ion Engine Power Core Light Nuclear Core Propulsion Light Treads Treads Light Treads Utility Small Storage Unit Device Heat Sink Storage Small Storage Unit Protection Improved Light Armor Plating Weapon Small Laser Energy Gun Small Laser Ballistic Gun Makeshift Shrapnel Gun Launcher Grenade Launcher Special Weapon RU-N14's Throwing Claymores Build | -11 -10 -10 -9 -9 -7 -6 ------- Run | Yrd Mat Min Mat Min Zio Pro Slots Evolved 2 | . . . 2 . . . Power . | . . . . . . . Propulsion 1 | . . . 1 . . . Utility . | . . . . . . . Weapon 1 | . . . 1 . . . Parts Attached 33 | 6 3 2 7 1 2 12 Power 4 | 1 . . 1 . . 2 Engine 3 | 1 . . 1 . . 1 Core 1 | . . . . . . 1 Reactor . | . . . . . . . Propulsion 3 | 2 . . 1 . . . Treads 3 | 2 . . 1 . . . Leg . | . . . . . . . Wheel . | . . . . . . . Hover . | . . . . . . . Flight . | . . . . . . . Utility 4 | 1 . . 1 . 1 1 Device 2 | . . . 1 . . 1 Storage 1 | 1 . . . . . . Processor . | . . . . . . . Hackware . | . . . . . . . Protection 1 | . . . . . 1 . Artifact . | . . . . . . . Weapon 22 | 2 3 2 4 1 1 9 Energy Gun 5 | 1 . . 3 . . 1 Energy Cannon . | . . . . . . . Ballistic Gun 9 | 1 1 1 . 1 . 5 Ballistic Cannon . | . . . . . . . Launcher 4 | . 2 . 1 . . 1 Special Weapon 4 | . . 1 . . 1 2 Impact Weapon . | . . . . . . . Slashing Weapon . | . . . . . . . Piercing Weapon . | . . . . . . . Special Melee Weapon . | . . . . . . . Unidentified Prototypes 2 | . . . 1 . 1 . Parts Lost 6 | . . . . . . 6 Power 2 | . . . . . . 2 Propulsion 2 | . . . . . . 2 Utility . | . . . . . . . Weapon 2 | . . . . . . 2 Highest Loss Streak 3 | . . . . . . 3 To Critical Strikes 1 | . . . . . . 1 Average Slot Usage (%) 89 | . 85 85 88 100 100 77 Engine 9 | . 14 14 11 11 11 2 Core 1 | . . . . . . 6 Treads 26 | . 28 28 27 33 33 14 Device 6 | . . . 5 11 7 10 Storage 11 | . 14 14 11 11 11 11 Protection 1 | . . . . . 3 . Energy Gun 14 | . 14 12 12 22 22 3 Ballistic Gun 11 | . 12 9 11 11 4 20 Special Weapon 5 | . . 1 8 . 6 8 Naked Turns . | . . . . . . . Heaviest Build 30 | 13 14 14 22 23 30 30 Greatest Support 60 | 40 40 40 60 60 60 60 Greatest Overweight (x) 1 | 1 . . . . . 1 Average Overweight (x) . | . . . . . . . Largest Inventory Capacity 8 | 8 8 8 8 8 8 8 Average Capacity 7 | 6 8 8 8 8 8 8 Most Carried 8 | 1 4 4 5 6 8 8 Average Carried 5 | . 1 3 3 5 7 5 Final Capacity 8 | 8 8 8 8 8 8 8 Final Carried 8 | 1 3 4 5 6 8 5 Class Distribution -------------------- 56% | Gunner 24% | Mutant 12% | Tank 6% | Derelict-Gunner Dominant Class ---------------- Mutant | -10/Materials Mutant | -10/Mines Gunner | -9/Materials Gunner | -9/Mines Gunner | -7/Zion Gunner | -6/Proximity Caves Resources | -11 -10 -10 -9 -9 -7 -6 ----------- Run | Yrd Mat Min Mat Min Zio Pro Matter Collected 993 | 194 82 66 200 94 103 254 Remotely . | . . . . . . . Salvage Created 997 | . 111 138 200 95 . 453 Parts 68 | . 7 19 14 8 . 20 Haulers Intercepted 1 | . 1 . . . . . Recyclers Shooed . | . . . . . . . Parts Field Recycled . | . . . . . . . Retrieved Matter . | . . . . . . . Parts Self-Destructed 16 | . . . . . 2 14 Prevented 1 | . . . . . . 1 Kills | -11 -10 -10 -9 -9 -7 -6 ------- Run | Yrd Mat Min Mat Min Zio Pro Combat Hostiles Destroyed 37 | . 1 8 6 5 . 17 Guns 17 | . . 4 3 2 . 8 Cannons 1 | . . . . . . 1 AOE 18 | . 1 4 3 3 . 7 Classes Destroyed 10 | . 3 2 3 1 . 1 Builder 3 | . 1 2 . . . . Tunneler 1 | . . 1 . . . . Hauler 1 | . 1 . . . . . Recycler 1 | . . . 1 . . . Swarmer 22 | . . 6 3 3 . 10 Grunt 9 | . 1 2 1 1 . 4 Brawler 1 | . . . 1 . . . Duelist 1 | . . . . 1 . . Sentry 2 | . . . 1 . . 1 Hunter 2 | . . . . . . 2 Best Kill Streak 5 | . 3 5 5 5 . 5 Combat Bots Only 5 | . 1 3 5 5 . 5 Max Kills in Single Turn 4 | . 2 2 2 3 . 4 Gunslinging 1 | . . 1 . . . . Exploded 3 | . 1 1 2 3 . 3 Melee . | . . . . . . . Uniques/NPCs Destroyed . | . . . . . . . Combat | -11 -10 -10 -9 -9 -7 -6 -------- Run | Yrd Mat Min Mat Min Zio Pro Hostile Shots Fired 131 | . 2 28 7 4 . 90 Missed 37 | . 1 9 3 3 . 21 Damage Taken 1213 | . 16 154 26 39 . 978 Core 205 | . 8 25 14 . . 158 Absorbed by Shields . | . . . . . . . Ignored by Resistances 351 | . 5 48 9 11 . 278 Regen/Repaired (Parts) 24 | . 24 . . . . . Core Remaining (%) 93 | 100 . 86 . . . . Volleys Fired 55 | . 2 13 6 4 . 30 Largest 3 | . 2 2 3 3 . 3 Hottest 160 | . 70 70 160 115 . 103 Shots Fired 116 | . 4 23 18 12 . 59 Gun 93 | . 2 13 12 12 . 54 Cannon . | . . . . . . . Launcher 17 | . 2 10 4 . . 1 Special 6 | . . . 2 . . 4 Kinetic 29 | . . 3 6 4 . 16 Thermal 66 | . 2 10 8 8 . 38 Explosive 21 | . 2 10 4 . . 5 Electromagnetic . | . . . . . . . Robot Hit Streak 21 | . 3 5 14 4 . 21 Robot Miss Streak 4 | . 1 1 . 4 . 3 Penetration Max . | . . . . . . . Secondary Targets 3 | . . 1 . 1 . 1 Max Gunslinging Chain 1 | . . 1 . 1 . 1 Shots Hit Robots 77 | . 3 12 9 5 . 48 Core Hits 71 | . 4 14 11 5 . 37 Critical Kills . | . . . . . . . Critical Parts Destroyed . | . . . . . . . Critical Strikes 2 | . . . 1 . . 1 Burn 2 | . . . 1 . . 1 Melee Attacks . | . . . . . . . Impact . | . . . . . . . Slashing . | . . . . . . . Piercing . | . . . . . . . Sneak Attacks . | . . . . . . . Combat Hostiles . | . . . . . . . Follow-up Attacks . | . . . . . . . Damage Inflicted 3229 | . 115 709 390 293 . 1722 Guns 1123 | . 10 96 118 98 . 801 Cannons . | . . . . . . . Explosions 2000 | . 105 613 272 195 . 815 Melee . | . . . . . . . Ramming . | . . . . . . . Kinetic 369 | . . 41 36 14 . 278 Thermal 949 | . 10 55 82 279 . 523 Explosive 1805 | . 105 613 272 . . 815 Electromagnetic . | . . . . . . . Impact . | . . . . . . . Slashing 106 | . . . . . . 106 Piercing . | . . . . . . . Highest Corruption . | . . . . . . . Average Corruption . | . . . . . . . Corruption Purged . | . . . . . . . Corruption Blocked . | . . . . . . . Overload Shots . | . . . . . . . Overflow Damage 79 | . . 41 10 17 . 11 Projectiles 11 | . . . . . . 11 Explosions 68 | . . 41 10 17 . . Melee . | . . . . . . . Knockbacks . | . . . . . . . Impact . | . . . . . . . Kinetic . | . . . . . . . Secondary . | . . . . . . . Self-Inflicted Damage 55 | . 8 15 . 31 . 1 Shots 5 | . 1 1 . 2 . 1 Rammed . | . . . . . . . Targets Rammed . | . . . . . . . Kicked . | . . . . . . . Crushed . | . . . . . . . Highest Temperature 457 | . 18 54 12 87 . 457 Average Temperature 134 | . 10 21 7 42 . 247 Received Heat Transfer 228 | . 6 36 . 6 . 180 Effects 5 | . . . . . . 5 Shutdowns 2 | . . . . . . 2 Energy Bleed 1 | . . . . . . 1 Interference 1 | . . . . . . 1 Matter Decay 1 | . . . . . . 1 Siege Activations . | . . . . . . . Robots Corrupted . | . . . . . . . Combat Hostiles . | . . . . . . . Parts Fried . | . . . . . . . Impact Corruptions . | . . . . . . . Robots Melted 1 | . . . . . . 1 Combat Hostiles 1 | . . . . . . 1 Parts Melted 3 | . . . . 1 . 2 Heat Transferred 1848 | . 25 125 235 361 . 1102 Parts Sabotaged . | . . . . . . . Parts Stolen . | . . . . . . . Parts Stripped . | . . . . . . . Power Chain Reactions . | . . . . . . . Alert | -11 -10 -10 -9 -9 -7 -6 ------- Run | Yrd Mat Min Mat Min Zio Pro Peak Influence 280 | . 43 280 243 256 . . Initial 79 | . . 13 26 79 . . Average 117 | . 5 140 94 254 . . Maximum Alert Level 1 | . . 1 1 1 . . Low Security (%) 61 | 100 100 52 80 . . . Level 1 38 | . . 47 19 100 . . Level 2 . | . . . . . . . Level 3 . | . . . . . . . Level 4 . | . . . . . . . Level 5 . | . . . . . . . High Security . | . . . . . . . Max Security . | . . . . . . . Squads Dispatched 1 | . . . 1 . . . Investigation . | . . . . . . . Extermination . | . . . . . . . Reinforcement 1 | . . . 1 . . . Assault . | . . . . . . . Garrison . | . . . . . . . Intercept . | . . . . . . . Searches Triggered . | . . . . . . . Construction Impeded 1 | . . . 1 . . . Haulers Reinforced . | . . . . . . . Active Scanning Responses . | . . . . . . . Cargo Convoy Interrupts . | . . . . . . . Stealth | -11 -10 -10 -9 -9 -7 -6 --------- Run | Yrd Mat Min Mat Min Zio Pro Distress Signals . | . . . . . . . Communications Jammed . | . . . . . . . Distress Signals . | . . . . . . . Times Spotted 38 | . 1 9 6 2 . 20 Peak Tracking Total 7 | . 2 3 5 1 . 7 Tactical Retreats 3 | . . 1 . . . 2 Traps | -11 -10 -10 -9 -9 -7 -6 ------- Run | Yrd Mat Min Mat Min Zio Pro Traps Triggered . | . . . . . . . Indirectly . | . . . . . . . Trap Hack Attempts . | . . . . . . . Triggered . | . . . . . . . Disarmed . | . . . . . . . Reprogrammed . | . . . . . . . Reused . | . . . . . . . Traps Extracted . | . . . . . . . Installed . | . . . . . . . Triggered 1 | . . . . . . 1 Machines | -11 -10 -10 -9 -9 -7 -6 ---------- Run | Yrd Mat Min Mat Min Zio Pro Machines Disabled 10 | . . . 1 5 . 4 Max in Single Turn 5 | . . . 1 5 . 4 Machines Repaired . | . . . . . . . Machines Dismantled . | . . . . . . . Machines Sabotaged . | . . . . . . . Overloaded Fab Kills . | . . . . . . . Hacking | -11 -10 -10 -9 -9 -7 -6 --------- Run | Yrd Mat Min Mat Min Zio Pro Machines Accessed 3 | . 2 . 1 . . . Terminals 1 | . . . 1 . . . Fabricators . | . . . . . . . Repair Stations 1 | . 1 . . . . . Recycling Units 1 | . 1 . . . . . Scanalyzers . | . . . . . . . Garrison Access . | . . . . . . . Total Hacks 5 | . 4 . 1 . . . Successful 4 | . 3 . 1 . . . Failed 1 | . 1 . . . . . Catastrophic . | . . . . . . . Database Lockouts . | . . . . . . . Manual 1 | . . . . . 1 . Terminals 1 | . . . 1 . . . Fabricators . | . . . . . . . Repair Stations 2 | . 2 . . . . . Recycling Units 2 | . 2 . . . . . Scanalyzers . | . . . . . . . Garrison Access . | . . . . . . . Terminal Hacks 1 | . . . 1 . . . Hauler Manifests 1 | . . . 1 . . . Fabricator Hacks . | . . . . . . . Repair Station Hacks 2 | . 2 . . . . . Scan Component 1 | . 1 . . . . . Repair 1 | . 1 . . . . . Recycling Unit Hacks 1 | . 1 . . . . . Retrieve Components 1 | . 1 . . . . . Scanalyzer . | . . . . . . . Garrison Access Hacks . | . . . . . . . Unauthorized Hacks . | . . . . . . . Terminals . | . . . . . . . Fabricators . | . . . . . . . Repair Stations . | . . . . . . . Recycling Units . | . . . . . . . Scanalyzers . | . . . . . . . Garrison Access . | . . . . . . . Data Cores Recovered . | . . . . . . . Used . | . . . . . . . Hacking Detections 1 | . 1 . . . . . Full Trace Events . | . . . . . . . Feedback Events . | . . . . . . . Feedback Blocked . | . . . . . . . Robot Schematics Acquired . | . . . . . . . Robots Built . | . . . . . . . Authchips . | . . . . . . . Time . | . . . . . . . Total Robot Build Rating . | . . . . . . . Part Schematics Acquired . | . . . . . . . Parts Built . | . . . . . . . Authchips . | . . . . . . . Time . | . . . . . . . Total Part Build Rating . | . . . . . . . Parts Repaired 1 | . 1 . . . . . Time 26 | . 26 . . . . . Parts Recycled . | . . . . . . . Recycled Matter . | . . . . . . . Retrieved Matter . | . . . . . . . Retrieved Components 1 | . 1 . . . . . Parts Scanalyzed . | . . . . . . . Part Schematics Acquired . | . . . . . . . Parts Damaged . | . . . . . . . Bothacking | -11 -10 -10 -9 -9 -7 -6 ------------ Run | Yrd Mat Min Mat Min Zio Pro Used RIF Installer . | . . . . . . . Robots Hacked . | . . . . . . . Non-combat . | . . . . . . . Combat . | . . . . . . . Robot Hacks Applied . | . . . . . . . Relay Couplers Released . | . . . . . . . Fabnet Peak Effective % . | . . . . . . . Robots Rewired . | . . . . . . . Allies Hacked . | . . . . . . . Hacks Repelled . | . . . . . . . Allies | -11 -10 -10 -9 -9 -7 -6 -------- Run | Yrd Mat Min Mat Min Zio Pro Total Allies 1 | . . 1 . . . . Largest Group 1 | . . 1 1 . . . Highest-Rated Group 31 | . . 31 31 . . . Highest-Rated Ally 31 | . . 31 31 . . . Total Orders . | . . . . . . . Ally Attacks 2 | . . . 2 . . . Total Damage 42 | . . . 42 . . . Kills 1 | . . . 1 . . . Allies Corrupted . | . . . . . . . Allies Melted . | . . . . . . . Intel | -11 -10 -10 -9 -9 -7 -6 ------- Run | Yrd Mat Min Mat Min Zio Pro Robot Analysis Total . | . . . . . . . Derelict Logs Recovered 5 | . . 1 . 1 1 2 Drone Launches . | . . . . . . . Drone Recoveries . | . . . . . . . Exploration | -11 -10 -10 -9 -9 -7 -6 ------------- Run | Yrd Mat Min Mat Min Zio Pro Turns Passed 3922 | 95 275 522 344 277 1332 1077 Spaces Moved 2211 | 59 147 300 188 164 827 526 Core 8 | 8 . . . . . . Treads 2203 | 51 147 300 188 164 827 526 Legs . | . . . . . . . Wheels . | . . . . . . . Hover . | . . . . . . . Flight . | . . . . . . . Fastest Speed 50 | 50 160 160 160 160 160 160 Average Speed 165 | 145 160 160 160 160 160 183 Slowest Speed 240 | 160 160 160 160 160 160 240 Overloaded Moves . | . . . . . . . Propulsion Burnouts . | . . . . . . . Robots Hopped . | . . . . . . . Cave-ins Triggered . | . . . . . . . Exploration Rate (%) 39 | 4 19 41 19 56 76 61 Regions Visited 6 Branch Regions 4 Pre-discovered Areas 2 | . . . . . 1 1 Known Exits Taken 1 | . . 1 . . . . Unknown Exits Taken 5 | 1 1 . 1 1 1 . Scrap Searched 5 | . . . . 1 1 3 Spaces Dug . | . . . . . . . Terrain Destroyed 176 | . 11 80 20 12 . 53 Melee . | . . . . . . . Projectile 1 | . . . . . . 1 AOE 175 | . 11 80 20 12 . 52 Terrain Rammed . | . . . . . . . Walls Destroyed . | . . . . . . . Machines Disabled . | . . . . . . . Actions | -11 -10 -10 -9 -9 -7 -6 --------- Run | Yrd Mat Min Mat Min Zio Pro Total 2365 | 65 182 319 212 169 836 582 Wait 46 | . 26 3 9 . 1 7 Move 2205 | 58 146 299 187 163 826 526 Hop . | . . . . . . . Pick Up 17 | 1 4 1 2 1 4 4 Fast Attach 10 | 6 . . 2 . 1 1 Attach 11 | . . 1 2 . . 8 Detach 3 | . . 1 1 . . 1 Swap 12 | . 3 1 3 1 1 3 Drop 6 | . 1 . . . 3 2 Fire 55 | . 2 13 6 4 . 30 Melee . | . . . . . . . Ram . | . . . . . . . Kick . | . . . . . . . Crush . | . . . . . . . Escape Stasis . | . . . . . . . Rewire . | . . . . . . . Trap . | . . . . . . . Miscellaneous . | . . . . . . . Route ------- -11/Scrapyard -10/Materials -10/Mines -9/Materials -9/Mines -7/Zion -6/Proximity Caves (discovered 1 exit: Fac) History --------- Turn | Location | Event 12 | -11/Scrapyard | Discovered new exit (range 15) 96 | -11/Scrapyard | Entered Materials 240 | -10/Materials | Repaired Grenade Launcher 302 | -10/Materials | Build established: Mutant 327 | -10/Materials | Discovered new exit (range 8) 371 | -10/Materials | Entered Mines 558 | -10/Mines | Identified exit to Materials 822 | -10/Mines | Received a Mining Laser from a helpful Derelict 893 | -10/Mines | Entered Materials 893 | -9/Materials | Accompanied by 1 ally 893 | -9/Materials | Evolved 2 slots: Propulsion x1, Weapon x1 1179 | -9/Materials | Discovered new exit (range 16) 1213 | -9/Materials | Build established: Gunner 1237 | -9/Materials | Entered Mines 1372 | -9/Mines | Learned 2 Materials zone layouts 1510 | -9/Mines | A Derelict revealed a hidden shortcut to a safe place 1514 | -9/Mines | Entered Zion 2066 | -7/Zion | Found Prototype Special Weapon 2067 | -7/Zion | Identified RU-N14's Throwing Claymores 2071 | -7/Zion | Found RU-N14's Throwing Claymores 2078 | -7/Zion | Found RU-N14's Throwing Claymores 2082 | -7/Zion | Found RU-N14's Throwing Claymores 2725 | -7/Zion | Build established: Tank 2817 | -7/Zion | Discovered new exit (range 12) 2846 | -7/Zion | Entered Proximity Caves 2877 | -6/Proximity Caves | Attracted the attention of an 0b10 base 3161 | -6/Proximity Caves | Lost 3 parts (1p1n1w) 3191 | -6/Proximity Caves | Identified exit to Factory 3465 | -6/Proximity Caves | Build established: Gunner 3923 | -6/Proximity Caves | Self-destructed Last Messages --------------- Found Adv. Visual Processing Unit. Found Adv. Weight Redist. System. Found 15 Matter. Acquired Lgt. Nuclear Core. Acquired 10 matter. Acquired derelict log, extracted data. World map updated: -7/Zion. Searching scrap... Found Mak. Hacking Suite. Found Assault Cannon. Found Mak. System Shield. Found 35 Matter. S-27 Virus destroyed. RU-N14's Throwing Claymores expended. S-27 Virus destroyed. VTOL Module fries itself beyond repair. Autogun fries itself beyond repair. Acquired 4 matter. Acquired 7 matter. The unstable cave ceiling collapses. Map ----- +----------------------------------------------------+ | ?????????????????????????????????????????????????? | | ?????????????????????????????????????????????????? | | ?????????????????????????????????????????????????? | | ?????????????????????????????????????????????????? | | ?????????????????????????????????????????????????? | | ?????????????????????????????????????????????????? | | ?????????????????????????????????????????????????? | | ?????????????????????????????????????????????????? | | ?????????????????????????????????????????????????? | | ?????????????????????????????????????????????????? | | ?????????????????????????????????????????????????? | | ?????????????????????????????????????????????????? | | ?????????????????????????????????????????????????? | | ?????????????????????????????????????????????????? | | ????????????????????????#######??????????????????? | | ????????????????????????#"""""#??????????????????? | | ????????????????????????#"""""#??????????????????? | | ????????????????????????#"""""#??????????????????? | | ?????????????????????????# ###?????????????????? | | ?????????????????######### # #?????????????????? | | ???????????????# ##????????????????? | | ???????????????# # #????????????????? | | ???????????????# ????# # ####?????#####???? | | ???????????????# ????# ## #????#"""""#??? | | ???????????????# g # ### ###??#"" ""#??? | | ??????????????# g @#?##### # ####"" ""#??? | | ??????????????# # #?????# #" "#???? | | ??#??????????# ##### #?????### #" "##??? | | ? #??????????# ?????? ?????#### "" ""###? | | # #??????????#???????? ????????## ## | | #??????????????????# ???######### ### | | ###??????????????????# ???? #?###?# | | #???????????????????? #????# ####?# | | #####???????????????## ##?## ### # | | ##???????????????## ### ## | | ##???????????????# | | #????????????##### ?????# ## | | ##??????????## ### ####??## #? | | #??????##### #??# ###### #? | | #??##### ## ##??## ## ## ##? | | #### ###??# ## ####?? | | ## #### ## ##????? | | ## # #### #?????? | | ### # ###### #?????? | | # ### ### #### ##??# #?????? | | # ### # ######?# #??# #?????? | | ####?# ## # ####?## #### ######## | | ????# ###### ##### | | ??? #????###### #?## | | ?? ##?????????## #??## #### ####### | +----------------------------------------------------+ Best States ------------- Heat Dissipation 47 Energy Generation 14 Energy Capacity 265 Matter Stores 300 Matter Capacity 300 Sight Range 16 Terrain Scan Density 10 Armor Coverage 150 Resistance: KI 20 Resistance: TH 20 Resistance: EX 20 Resistance: EM 20 Resistance: I 20 Resistance: S 20 Resistance: P 20 Evasion (%) 40 Recoil Reduction 3 Offensive Hacking 10 Item Schematics ----------------- None Robot Schematics ------------------ None Fabricated ------------ Nothing Alien Tech Used ----------------- None Achievements -------------- Part-time Mechanic Robot Respite Shopping List Tourist Challenges ------------ None Game ------ Seed AlertPhasingSabre Manual? 0 Play Time 00:32:19 Cumulative 1.7 hours Start 2024.04.09 @ 18:24:48 End 2024.04.09 @ 19:01:45 Sessions 1 Manual Loads 0 Difficulty Adventurer Special Mode None Game No. 5 Rogue 0 Adventurer 5 Explorer 0 Win Type - Total 0 Types 0/0/0/0/0/0/0/0/0 Lore% 2 Gallery% 7 Achievement% 7 Wizard Run 0 Options --------- Layout 1 ASCII 0 Keyboard 0 Movement Arrows Keybinds 0 Fullscreen 1 Font 20/SmallcapsGlow Map View 50x35 Zoom Use 0% Tactical HUD 0 Map Filters NONE Filters NONE Steam 1 RUN: b460279c-de67-48c0-b1ad-b874ba4c055e